fUSD/lending_fUSD_20240526
["ID","MTS","AMOUNT","RATE_DAILY","PERIOD"]
[327966532,1716726656788,-500.0,0.00027945,4]
[327966533,1716726656798,-500.0,0.00027945,4]
[327966534,1716726656807,-500.0,0.00027945,4]
[327966535,1716726656817,-500.0,0.00027945,4]
[327966536,1716726656827,-649.03319177,0.00027945,4]
[327966537,1716726656836,-988.59,0.00027945,4]
[327966538,1716726656846,-500.0,0.00027945,4]
[327966539,1716726656856,-500.0,0.00027945,4]
[327966540,1716726656865,-1409.6,0.00027945,4]
[327966541,1716726656875,-500.0,0.00027945,4]
[327966542,1716726656884,-500.0,0.00027945,4]
[327966543,1716726656894,-500.0,0.00027945,4]
[327966544,1716726656904,-500.0,0.00027945,4]
[327966545,1716726656913,-665.35,0.00027945,4]
[327966546,1716726656923,-500.0,0.00027945,4]
[327966547,1716726656933,-500.0,0.00027945,4]
[327966548,1716726656942,-964.14,0.00027945,4]
[327966549,1716726657053,-1372.12,0.00027945,4]
[327966550,1716726657072,-508.19,0.00027945,4]
[327966551,1716726657082,-500.0,0.00027945,4]
[327966552,1716726657092,-500.0,0.00027945,4]
[327966553,1716726657101,-4825.69,0.00027945,4]
[327966554,1716726657111,-934.06,0.00027945,4]
[327966555,1716726657120,-488.259841,0.00027945,7]
[327966556,1716726657130,-500.0,0.00027945,4]
[327966557,1716726657139,-546.92,0.00027945,4]
[327966558,1716726657149,-488.259841,0.00027945,7]
[327966559,1716726657158,-531.24,0.00027945,4]
[327966560,1716726657168,-500.0,0.00027945,4]
[327966561,1716726657178,-500.0,0.00027945,4]
[327966562,1716726657191,-524.18,0.00027945,4]
[327966563,1716726657200,-500.0,0.00027945,4]
[327966564,1716726657210,-689.49,0.00027945,4]
[327966565,1716726657220,-1322.64,0.00027945,4]
[327966566,1716726657229,-500.0,0.00027945,4]
[327966567,1716726657238,-500.0,0.00027945,4]
[327966568,1716726657247,-748.21,0.00027945,4]
[327966569,1716726657256,-500.0,0.00027945,4]
[327966570,1716726657266,-569.7,0.00027945,4]
[327966571,1716726657275,-500.0,0.00027945,4]
[327966572,1716726657284,-576.05,0.00027945,4]
[327966573,1716726657294,-608.77,0.00027945,4]
[327966574,1716726657303,-500.0,0.00027945,4]
[327966575,1716726657312,-1117.54,0.00027945,4]
[327966576,1716726657322,-740.29,0.00027945,4]
[327966577,1716726657332,-849.63,0.00027945,4]
[327966578,1716726657341,-940.73,0.00027945,4]
[327966579,1716726657351,-500.0,0.00027945,4]
[327966580,1716726657360,-500.0,0.00027945,4]
[327966581,1716726657370,-500.0,0.00027945,4]
[327966582,1716726657379,-500.0,0.00027945,4]
[327966583,1716726657389,-500.0,0.00027945,4]
[327966584,1716726657398,-520.01,0.00027945,4]
[327966585,1716726657407,-996.37,0.00027945,4]
[327966586,1716726657416,-500.0,0.00027945,4]
[327966587,1716726657426,-518.69,0.00027945,4]
[327966588,1716726657436,-500.0,0.00027945,4]
[327966589,1716726657445,-500.0,0.00027945,4]
[327966590,1716726657455,-500.0,0.00027945,4]
[327966591,1716726657467,-1218.55,0.00027945,4]
[327966592,1716726657476,-668.66,0.00027945,4]
[327966593,1716726657486,-500.0,0.00027945,4]
[327966594,1716726657495,-500.0,0.00027945,4]
[327966595,1716726657506,-788.57,0.00027945,4]
[327966596,1716726657515,-500.0,0.00027945,4]
[327966597,1716726657525,-500.0,0.00027945,4]
[327966598,1716726657534,-1777.79,0.00027945,4]
[327966599,1716726657546,-500.0,0.00027945,4]
[327966600,1716726657556,-159.6,0.00027945,4]
[327966601,1716726657565,-683.86,0.00027945,4]
[327966602,1716726657575,-500.0,0.00027945,4]
[327966603,1716726657584,-500.0,0.00027945,4]
[327966604,1716726657593,-500.0,0.00027945,4]
[327966605,1716726657602,-500.0,0.00027945,4]
[327966606,1716726657611,-512.19,0.00027945,4]
[327966607,1716726657621,-539.29,0.00027945,4]
[327966608,1716726657631,-500.0,0.00027945,4]
[327966609,1716726657640,-500.0,0.00027945,4]
[327966610,1716726657649,-577.13,0.00027945,4]
[327966611,1716726657659,-500.0,0.00027945,4]
[327966612,1716726657669,-693.81,0.00027945,4]
[327966613,1716726657678,-500.0,0.00027945,4]
[327966614,1716726657687,-553.46,0.00027945,4]
[327966615,1716726657697,-587.04,0.00027945,4]
[327966616,1716726657706,-500.0,0.00027945,4]
[327966617,1716726657715,-500.0,0.00027945,4]
[327966618,1716726657725,-500.0,0.00027945,4]
[327966619,1716726657734,-500.0,0.00027945,4]
[327966620,1716726657743,-500.0,0.00027945,4]
[327966621,1716726657753,-500.0,0.00027945,4]
[327966622,1716726657763,-500.0,0.00027945,4]
[327966623,1716726657772,-1256.52,0.00027945,4]
[327966624,1716726657782,-653.52,0.00027945,4]
[327966625,1716726657791,-500.0,0.00027945,4]
[327966626,1716726657800,-500.0,0.00027945,4]
[327966627,1716726657810,-500.0,0.00027945,4]
[327966628,1716726657819,-531.91,0.00027945,4]
[327966629,1716726657829,-753.29,0.00027945,4]
[327966630,1716726657838,-500.0,0.00027945,4]
[327966631,1716726657848,-564.09,0.00027945,4]
[327966632,1716726657857,-881.23,0.00027945,4]
[327966633,1716726657866,-520.84,0.00027945,4]
[327966634,1716726657875,-500.0,0.00027945,4]
[327966635,1716726657885,-709.29,0.00027945,4]
[327966636,1716726657894,-685.35,0.00027945,4]
[327966637,1716726657904,-1280.87,0.00027945,4]
[327966638,1716726657913,-500.0,0.00027945,4]
[327966639,1716726657922,-500.0,0.00027945,4]
[327966640,1716726657932,-500.0,0.00027945,4]
[327966641,1716726657941,-849.04,0.00027945,4]
[327966642,1716726657951,-500.0,0.00027945,4]
[327966643,1716726657960,-738.62,0.00027945,4]
[327966644,1716726657970,-500.0,0.00027945,4]
[327966645,1716726657979,-500.0,0.00027945,4]
[327966646,1716726657988,-500.0,0.00027945,4]
[327966647,1716726657997,-847.07,0.00027945,4]
[327966648,1716726658007,-500.0,0.00027945,4]
[327966649,1716726658016,-500.0,0.00027945,4]
[327966650,1716726658026,-894.21,0.00027945,4]
[327966651,1716726658035,-500.0,0.00027945,4]
[327966652,1716726658044,-1117.97,0.00027945,4]
[327966653,1716726658053,-500.0,0.00027945,4]
[327966654,1716726658063,-500.0,0.00027945,4]
[327966655,1716726658072,-500.0,0.00027945,4]
[327966656,1716726658082,-500.0,0.00027945,4]
[327966657,1716726658092,-500.0,0.00027945,4]
[327966658,1716726658101,-263.97,0.00027945,4]
[327966659,1716726658111,-534.2,0.00027945,4]
[327966660,1716726658120,-500.0,0.00027945,4]
[327966661,1716726658129,-500.0,0.00027945,4]
[327966662,1716726658138,-500.0,0.00027945,4]
[327966663,1716726658148,-628.27,0.00027945,4]
[327966664,1716726658157,-500.0,0.00027945,4]
[327966665,1716726658167,-500.0,0.00027945,4]
[327966666,1716726658178,-500.0,0.00027945,4]
[327966667,1716726658187,-499.8,0.00027945,4]
[327966668,1716726658196,-500.0,0.00027945,4]
[327966669,1716726658206,-500.0,0.00027945,4]
[327966670,1716726658216,-504.64,0.00027945,4]
[327966671,1716726658225,-518.73,0.00027945,4]
[327966672,1716726658234,-500.0,0.00027945,4]
[327966673,1716726658245,-538.37,0.00027945,4]
[327966674,1716726658254,-500.0,0.00027945,4]
[327966675,1716726658263,-538.49,0.00027945,4]
[327966676,1716726658273,-736.02,0.00027945,4]
[327966677,1716726658282,-500.0,0.00027945,4]
[327966678,1716726658291,-500.0,0.00027945,4]
[327966679,1716726658300,-953.13,0.00027945,4]
[327966680,1716726658309,-500.0,0.00027945,4]
[327966681,1716726658319,-500.0,0.00027945,4]
[327966682,1716726658328,-500.0,0.00027945,4]
[327966683,1716726658337,-785.05,0.00027945,4]
[327966684,1716726658348,-2426.56,0.00027945,4]
[327966685,1716726658357,-500.0,0.00027945,4]
[327966686,1716726658367,-582.6679051,0.00027945,4]
[327966687,1716726658376,-710.0,0.00027945,4]
[327966688,1716726658387,-500.0,0.00027945,4]
[327966689,1716726658398,-2179.03,0.00027945,4]
[327966690,1716726658408,-500.0,0.00027945,4]
[327966691,1716726658417,-500.0,0.00027945,4]
[327966692,1716726658427,-223.00945577,0.00027945,4]
[327966693,1716726658436,-500.0,0.00027945,4]
[327966694,1716726658445,-500.0,0.00027945,4]
[327966695,1716726658454,-3776.78,0.00027945,4]
[327966696,1716726658470,-500.0,0.00027945,4]
[327966697,1716726658480,-500.0,0.00027945,4]
[327966698,1716726658491,-500.0,0.00027945,4]
[327966699,1716726658503,-500.0,0.00027945,4]
[327966700,1716726658514,-671.27,0.00027945,4]
[327966701,1716726658524,-500.0,0.00027945,4]
[327966702,1716726658533,-500.0,0.00027945,4]
[327966703,1716726658544,-500.0,0.00027945,4]
[327966704,1716726658553,-625.9,0.00027945,4]
[327966705,1716726658562,-2259.1,0.00027945,4]
[327966706,1716726658572,-1205.23,0.00027945,4]
[327966707,1716726658583,-919.51,0.00027945,4]
[327966708,1716726658594,-500.0,0.00027945,4]
[327966709,1716726658604,-523.82,0.00027945,4]
[327966710,1716726658614,-588.98,0.00027945,4]
[327966711,1716726658623,-1045.91,0.00027945,4]
[327966712,1716726658632,-264.68543661,0.00027945,4]
[327966713,1716726658642,-660.1,0.00027945,4]
[327966714,1716726658652,-967.75,0.00027945,4]
[327966715,1716726658661,-500.0,0.00027945,4]
[327966716,1716726658671,-500.0,0.00027945,4]
[327966717,1716726658680,-500.0,0.00027945,4]
[327966718,1716726658690,-500.0,0.00027945,4]
[327966719,1716726658699,-500.0,0.00027945,4]
[327966720,1716726658708,-1067.83,0.00027945,4]
[327966721,1716726658718,-500.0,0.00027945,4]
[327966722,1716726658727,-1256.35,0.00027945,4]
[327966723,1716726658737,-646.03,0.00027945,4]
[327966724,1716726658746,-872.37,0.00027945,4]
[327966725,1716726658755,-500.0,0.00027945,4]
[327966726,1716726658765,-500.0,0.00027945,4]
[327966727,1716726658774,-393.97894841,0.00027945,4]
[327966728,1716726658784,-3739.03,0.00027945,4]
[327966729,1716726658794,-500.0,0.00027945,4]
[327966730,1716726658803,-614.94,0.00027945,4]
[327966731,1716726658811,-332.43355465,0.00027945,4]
[327966732,1716726658821,-13328.25,0.00027945,4]
[327966733,1716726658831,-1268.88,0.00027945,4]
[327966734,1716726658840,-2755.67,0.00027945,4]
[327966735,1716726658850,-978.58,0.00027945,4]
[327966736,1716726658858,-738.74,0.00027945,4]
[327966737,1716726658867,-500.0,0.00027945,4]
[327966738,1716726658877,-772.31,0.00027945,4]
[327966739,1716726658886,-250.4436463,0.00027945,4]
[327966740,1716726658895,-1152.0,0.00027945,4]
[327966741,1716726658904,-497.09544917,0.00027945,4]
[327966742,1716726658914,-500.0,0.00027945,4]
[327966743,1716726658924,-968.66,0.00027945,4]
[327966744,1716726658933,-1025.7,0.00027945,4]
[327966745,1716726658942,-500.0,0.00027945,4]
[327966746,1716726658953,-2317.75,0.00027945,4]
[327966747,1716726658962,-881.77,0.00027945,4]
[327966748,1716726658971,-500.0,0.00027945,4]
[327966749,1716726658981,-9133.15,0.00027945,4]
[327966750,1716726658990,-771.31,0.00027945,4]
[327966751,1716726658999,-1381.37,0.00027945,4]
[327966752,1716726659008,-1167.0,0.00027945,4]
[327966753,1716726659018,-774.73,0.00027945,4]
[327966754,1716726659028,-500.0,0.00027945,4]
[327966755,1716726659038,-901.37,0.00027945,4]
[327966756,1716726659047,-500.0,0.00027945,4]
[327966757,1716726659056,-500.0,0.00027945,4]
[327966758,1716726659065,-272.93337963,0.00027945,4]
[327966759,1716726659074,-1145.66,0.00027945,4]
[327966760,1716726659083,-727.43,0.00027945,4]
[327966761,1716726659093,-1868.34,0.00027945,4]
[327966762,1716726659103,-1089.85,0.00027945,4]
[327966763,1716726659112,-500.0,0.00027945,4]
[327966764,1716726659121,-592.74,0.00027945,4]
[327966765,1716726659131,-3521.87,0.00027945,4]
[327966766,1716726659392,-500.0,0.00027945,4]
[327966767,1716726659415,-500.0,0.00027945,4]
[327966768,1716726659424,-1945.48,0.00027945,4]
[327966769,1716726659434,-500.0,0.00027945,4]
[327966770,1716726659443,-590.02,0.00027945,4]
[327966771,1716726659453,-1265.8,0.00027945,4]
[327966772,1716726659466,-500.0,0.00027945,4]
[327966773,1716726659475,-514.98706783,0.00027945,4]
[327966774,1716726659485,-500.0,0.00027945,4]
[327966775,1716726659494,-3778.36,0.00027945,4]
[327966776,1716726659504,-999.06,0.00027945,4]
[327966777,1716726659513,-500.0,0.00027945,4]
[327966778,1716726659523,-500.0,0.00027945,4]
[327966779,1716726659535,-796.74,0.00027945,4]
[327966780,1716726659547,-500.0,0.00027945,4]
[327966781,1716726659557,-659.36,0.00027945,4]
[327966782,1716726659567,-581.14,0.00027945,4]
[327966783,1716726659578,-500.0,0.00027945,4]
[327966784,1716726659588,-814.25,0.00027945,4]
[327966785,1716726659597,-500.0,0.00027945,4]
[327966786,1716726659607,-607.52,0.00027945,4]
[327966787,1716726659617,-1590.91,0.00027945,4]
[327966788,1716726659626,-500.0,0.00027945,4]
[327966789,1716726659635,-4326.72,0.00027945,4]
[327966790,1716726659645,-500.0,0.00027945,4]
[327966791,1716726659654,-862.83,0.00027945,4]
[327966792,1716726659663,-800.82,0.00027945,4]
[327966793,1716726659672,-602.37910596,0.00027945,4]
[327966794,1716726659682,-1930.56,0.00027945,4]
[327966795,1716726659691,-500.0,0.00027945,4]
[327966796,1716726659701,-500.0,0.00027945,4]
[327966797,1716726659710,-500.0,0.00027945,4]
[327966798,1716726659719,-500.0,0.00027945,4]
[327966799,1716726659729,-1987.82,0.00027945,4]
[327966800,1716726659738,-500.0,0.00027945,4]
[327966801,1716726659747,-954.19,0.00027945,4]
[327966802,1716726659757,-975.91,0.00027945,4]
[327966803,1716726659767,-500.0,0.00027945,4]
[327966804,1716726659779,-500.0,0.00027945,4]
[327966805,1716726659789,-738.99,0.00027945,4]
[327966806,1716726659798,-1441.7,0.00027945,4]
[327966807,1716726659807,-544.32,0.00027945,4]
[327966808,1716726659816,-500.0,0.00027945,4]
[327966809,1716726659825,-1062.05,0.00027945,4]
[327966810,1716726659835,-642.47,0.00027945,4]
[327966811,1716726659844,-500.0,0.00027945,4]
[327966812,1716726659854,-1254.13,0.00027945,4]
[327966813,1716726659863,-529.71,0.00027945,4]
[327966814,1716726659872,-1691.87,0.00027945,4]
[327966815,1716726659882,-500.0,0.00027945,4]
[327966816,1716726659892,-1340.06,0.00027945,4]
[327966817,1716726659902,-593.89,0.00027945,4]
[327966818,1716726659911,-1257.54,0.00027945,4]
[327966819,1716726659920,-2117.85,0.00027945,4]
[327966820,1716726659930,-500.0,0.00027945,4]
[327966821,1716726659940,-1347.74,0.00027945,4]
[327966822,1716726659949,-500.0,0.00027945,4]
[327966823,1716726659959,-1205.79,0.00027945,4]
[327966824,1716726659968,-724.99,0.00027945,4]
[327966825,1716726659977,-609.02,0.00027945,4]
[327966826,1716726659987,-1598.98,0.00027945,4]
[327966827,1716726659996,-1095.74,0.00027945,4]
[327966828,1716726660006,-551.52238983,0.00027945,4]
[327966829,1716726660015,-542.01,0.00027945,4]
[327966830,1716726660027,-1432.81,0.00027945,4]
[327966831,1716726660036,-879.0,0.00027945,4]
[327966832,1716726660046,-1533.8,0.00027945,4]
[327966833,1716726660056,-532.97473429,0.00027945,4]
[327966834,1716726660065,-1527.33,0.00027945,4]
[327966835,1716726660074,-500.0,0.00027945,4]
[327966836,1716726660084,-5751.57,0.00027945,4]
[327966837,1716726660094,-500.0,0.00027945,4]
[327966838,1716726660103,-2414.44,0.00027945,4]
[327966839,1716726660113,-500.0,0.00027945,4]
[327966840,1716726660123,-600.84,0.00027945,4]
[327966841,1716726660132,-1046.61,0.00027945,4]
[327966842,1716726660142,-1425.98,0.00027945,4]
[327966843,1716726660151,-500.0,0.00027945,4]
[327966844,1716726660161,-1675.63,0.00027945,4]
[327966845,1716726660170,-871.39,0.00027945,4]
[327966846,1716726660180,-3554.45,0.00027945,4]
[327966847,1716726660189,-1587.44,0.00027945,4]
[327966848,1716726660199,-500.0,0.00027945,4]
[327966849,1716726660208,-712.31,0.00027945,4]
[327966850,1716726660218,-1622.74,0.00027945,4]
[327966851,1716726660227,-842.59,0.00027945,4]
[327966852,1716726660237,-893.2,0.00027945,4]
[327966853,1716726660247,-500.0,0.00027945,4]
[327966854,1716726660257,-1368.43,0.00027945,4]
[327966855,1716726660267,-1056.86,0.00027945,4]
[327966856,1716726660278,-844.35,0.00027945,4]
[327966857,1716726660288,-999.05,0.00027945,4]
[327966858,1716726660299,-500.0,0.00027945,4]
[327966859,1716726660308,-1514.36,0.00027945,4]
[327966860,1716726660318,-1302.27,0.00027945,4]
[327966861,1716726660328,-500.0,0.00027945,4]
[327966862,1716726660338,-500.0,0.00027945,4]
[327966863,1716726660348,-1168.5,0.00027945,4]
[327966864,1716726660358,-500.0,0.00027945,4]
[327966865,1716726660368,-744.61,0.00027945,4]
[327966866,1716726660378,-668.27,0.00027945,4]
[327966867,1716726660388,-151.0,0.00027945,7]
[327966868,1716726660398,-688.25,0.00027945,4]
[327966869,1716726660408,-500.0,0.00027945,4]
[327966870,1716726660417,-12808.04,0.00027945,4]
[327966871,1716726660428,-1753.43,0.00027945,4]
[327966872,1716726660437,-743.78,0.00027945,4]
[327966873,1716726660447,-1296.02,0.00027945,4]
[327966874,1716726660458,-151.0,0.00027945,7]
[327966875,1716726660473,-1935.26,0.00027945,4]
[327966876,1716726660483,-1350.29,0.00027945,4]
[327966877,1716726660493,-867.66,0.00027945,4]
[327966878,1716726660503,-842.24,0.00027945,4]
[327966879,1716726660513,-500.0,0.00027945,4]
[327966880,1716726660522,-2172.85,0.00027945,4]
[327966881,1716726660533,-1538.51,0.00027945,4]
[327966882,1716726660543,-2713.25,0.00027945,4]
[327966883,1716726660553,-1252.93,0.00027945,4]
[327966884,1716726660563,-6095.74,0.00027945,4]
[327966885,1716726660573,-1281.4,0.00027945,4]
[327966886,1716726660583,-602.98,0.00027945,4]
[327966887,1716726660592,-517.84,0.00027945,4]
[327966888,1716726660602,-967.13,0.00027945,4]
[327966889,1716726660611,-500.0,0.00027945,4]
[327966890,1716726660621,-500.0,0.00027945,4]
[327966891,1716726660631,-838.0,0.00027945,4]
[327966892,1716726660641,-500.0,0.00027945,4]
[327966893,1716726660651,-1316.87,0.00027945,4]
[327966894,1716726660660,-1328.58,0.00027945,4]
[327966895,1716726660671,-1041.7,0.00027945,4]
[327966896,1716726660681,-864.28,0.00027945,4]
[327966897,1716726660690,-500.0,0.00027945,4]
[327966898,1716726660700,-961.04,0.00027945,4]
[327966899,1716726660710,-691.79,0.00027945,4]
[327966900,1716726660720,-2862.83,0.00027945,4]
[327966901,1716726660729,-567.52,0.00027945,4]
[327966902,1716726660739,-1530.36,0.00027945,4]
[327966903,1716726660748,-500.0,0.00027945,4]
[327966904,1716726660758,-1793.03,0.00027945,4]
[327966905,1716726660767,-500.0,0.00027945,4]
[327966906,1716726660777,-151.0,0.00027945,7]
[327966907,1716726660787,-970.7,0.00027945,4]
[327966908,1716726660796,-500.0,0.00027945,4]
[327966909,1716726660806,-500.0,0.00027945,4]
[327966910,1716726660815,-511.01,0.00027945,4]
[327966911,1716726660825,-592.12,0.00027945,4]
[327966912,1716726660834,-547.0,0.00027945,4]
[327966913,1716726660843,-3054.15913368,0.00028,2]
[327966914,1716726660854,-155.0,0.00028,2]
[327966915,1716726660863,-374.56,0.00028,2]
[327966916,1716726660873,-289.21,0.00028,2]
[327966917,1716726660883,-151.0,0.00028,7]
[327966918,1716726660892,-155.87291,0.00028,7]
[327966919,1716726660902,-151.0,0.00028,7]
[327966920,1716726660912,-959.25188833,0.00028,2]
[327966921,1716726660921,-7041.73491705,0.00028119,2]
[327966922,1716726660931,-1068.69863053,0.00028183,2]
[327966923,1716726660940,-300.0,0.000282,2]
[327966924,1716726660949,-625.0,0.00028218,4]
[327966925,1716726660959,-3196.06,0.00028218,4]
[327966926,1716726660969,-3196.06,0.00028218,4]
[327966927,1716726660978,-500.0,0.00028219,4]
[327966928,1716726660988,-500.0,0.00028219,4]
[327966929,1716726660996,-500.0,0.00028219,4]
[327966930,1716726661005,-500.0,0.00028219,4]
[327966931,1716726661015,-500.0,0.00028219,4]
[327966932,1716726661027,-500.0,0.00028219,4]
[327966933,1716726661036,-197.41905753,0.00028219,4]
[327966934,1716726661045,-500.0,0.00028219,4]
[327966935,1716726661054,-500.0,0.00028219,4]
[327966936,1716726661063,-589.05,0.00028219,4]
[327966937,1716726661073,-500.0,0.00028219,4]
[327966938,1716726661082,-500.0,0.00028219,4]
[327966939,1716726661092,-500.0,0.00028219,4]
[327966940,1716726661101,-506.604478,0.00028219,4]
[327966941,1716726661111,-500.0,0.00028219,4]
[327966942,1716726661120,-500.0,0.00028219,4]
[327966943,1716726661130,-500.0,0.00028219,4]
[327966944,1716726661140,-500.0,0.00028219,4]
[327966945,1716726661150,-167.97356037,0.00028219,4]
[327966946,1716726661160,-500.0,0.00028219,4]
[327966947,1716726661169,-500.0,0.00028219,4]
[327966948,1716726661179,-500.0,0.00028219,4]
[327966949,1716726661188,-500.0,0.00028219,4]
[327966950,1716726661198,-738.56,0.00028219,4]
[327966951,1716726661207,-500.0,0.00028219,4]
[327966952,1716726661217,-500.0,0.00028219,4]
[327966953,1716726661226,-500.0,0.00028219,4]
[327966954,1716726661236,-500.0,0.00028219,4]
[327966955,1716726661246,-500.0,0.00028219,4]
[327966956,1716726661255,-500.0,0.00028219,4]
[327966957,1716726661265,-500.0,0.00028219,4]
[327966958,1716726661276,-500.0,0.00028219,4]
[327966959,1716726661285,-500.0,0.00028219,4]
[327966960,1716726661294,-500.0,0.00028219,4]
[327966961,1716726661303,-290.01967583,0.00028219,4]
[327966962,1716726661312,-500.0,0.00028219,4]
[327966963,1716726661321,-500.0,0.00028219,4]
[327966964,1716726661331,-500.0,0.00028219,4]
[327966965,1716726661341,-500.0,0.00028219,4]
[327966966,1716726661351,-599.44,0.00028219,4]
[327966967,1716726661360,-659.18,0.00028219,4]
[327966968,1716726661369,-500.0,0.00028219,4]
[327966969,1716726661379,-500.0,0.00028219,4]
[327966970,1716726661388,-500.0,0.00028219,4]
[327966971,1716726661398,-500.0,0.00028219,4]
[327966972,1716726661407,-500.0,0.00028219,4]
[327966973,1716726661417,-179.46085527,0.00028219,4]
[327966974,1716726661426,-500.0,0.00028219,4]
[327966975,1716726661436,-500.0,0.00028219,4]
[327966976,1716726661445,-500.0,0.00028219,4]
[327966977,1716726661454,-500.0,0.00028219,4]
[327966978,1716726661468,-500.0,0.00028219,4]
[327966979,1716726661477,-500.0,0.00028219,4]
[327966980,1716726661487,-500.0,0.00028219,4]
[327966981,1716726661496,-500.0,0.00028219,4]
[327966982,1716726661509,-500.0,0.00028219,4]
[327966983,1716726661519,-1715.79,0.00028219,4]
[327966984,1716726661531,-500.0,0.00028219,4]
[327966985,1716726661546,-500.0,0.00028219,4]
[327966986,1716726661555,-573.5,0.00028219,4]
[327966987,1716726661565,-500.0,0.00028219,4]
[327966988,1716726661574,-500.0,0.00028219,4]
[327966989,1716726661583,-629.94292602,0.00028219,4]
[327966990,1716726661593,-500.0,0.00028219,4]
[327966991,1716726661603,-1319.74,0.00028219,2]
[327966992,1716726661612,-500.0,0.00028219,4]
[327966993,1716726661621,-695.19,0.00028219,4]
[327966994,1716726661630,-500.0,0.00028219,4]
[327966995,1716726661640,-500.0,0.00028219,4]
[327966996,1716726661649,-500.0,0.00028219,4]
[327966997,1716726661658,-500.0,0.00028219,4]
[327966998,1716726661667,-500.0,0.00028219,4]
[327966999,1716726661676,-627.75939424,0.00028219,4]
[327967000,1716726661685,-500.0,0.00028219,4]
[327967001,1716726661694,-559.39640617,0.00028219,4]
[327967002,1716726661703,-500.0,0.00028219,4]
[327967003,1716726661713,-500.0,0.00028219,4]
[327967004,1716726661722,-500.0,0.00028219,4]
[327967005,1716726661732,-500.0,0.00028219,4]
[327967006,1716726661742,-500.0,0.00028219,4]
[327967007,1716726661807,-1272.62,0.00028219,4]
[327967008,1716726661818,-500.0,0.00028219,4]
[327967009,1716726661828,-500.0,0.00028219,4]
[327967010,1716726661837,-500.0,0.00028219,4]
[327967011,1716726661847,-500.0,0.00028219,4]
[327967012,1716726661857,-500.0,0.00028219,4]
[327967013,1716726661867,-500.0,0.00028219,4]
[327967014,1716726661876,-500.0,0.00028219,4]
[327967015,1716726661886,-500.0,0.00028219,4]
[327967016,1716726661895,-500.0,0.00028219,4]
[327967017,1716726661904,-852.02,0.00028219,2]
[327967018,1716726661913,-500.0,0.00028219,4]
[327967019,1716726661922,-500.0,0.00028219,4]
[327967020,1716726661932,-500.0,0.00028219,4]
[327967021,1716726661941,-500.0,0.00028219,4]
[327967022,1716726661950,-539.12,0.00028219,4]
[327967023,1716726661959,-500.0,0.00028219,2]
[327967024,1716726661970,-500.0,0.00028219,4]
[327967025,1716726661979,-513.8,0.00028219,4]
[327967026,1716726661988,-500.0,0.00028219,2]
[327967027,1716726661999,-500.0,0.00028219,4]
[327967028,1716726662009,-505.03,0.00028219,4]
[327967029,1716726662020,-979.2,0.00028219,4]
[327967030,1716726662032,-716.2,0.00028219,4]
[327967031,1716726662041,-663.62,0.00028219,4]